[Event "Memorial Ukrainian Chess Warriors 2024"]
[Site "Lviv"]
[Date "2024.03.15"]
[Round "8.22"]
[White "Kuzyk, Yuriy"]
[Black "Fishchuk, Vladyslav"]
[Result "0-1"]
[ECO "B00"]
[WhiteElo "1946"]
[BlackElo "2203"]
[Annotator "RC"]
[PlyCount "100"]
[EventDate "2024.03.06"]
[EventType "swiss"]
[EventCountry "UKR"]
[SourceTitle "playchess.com"]
[Source "ChessBase"]
[SourceQuality "1"]
[TimeControl "600+5"]

1. e4 {[%emt 0:00:10]} Nc6 {[%emt 0:00:02]} 2. d4 {[%emt 0:00:03]} d5 {[%emt 0:00:01]} 3. e5 {[%emt 0:00:02]} Bf5 {[%emt 0:00:02]} 4. c3 {[%emt 0:00:01]} e6 {[%emt 0:00:02]} 5. Bd3 {[%emt 0:00:07]} Nge7 {[%emt 0:00:10]} 6. Ne2 {[%emt 0:00:05]} f6 {[%emt 0:00:07]} 7. exf6 {[%emt 0:00:03]} gxf6 {[%emt 0:00:02]} 8. Ng3 {[%emt 0:00:27]} Bxd3 {[%emt 0:00:03]} 9. Qxd3 {[%emt 0:00:01]} Qd7 {[%emt 0:00:07]} 10. Nh5 {[%emt 0:00:18]} Ng8 {[%emt 0:00:02]} 11. Qf3 {[%emt 0:00:42]} O-O-O {[%emt 0:00:17]} 12. Be3 {[%emt 0:00:40]} e5 {[%emt 0:00:21]} 13. Ng3 {[%emt 0:02:01]} exd4 {[%emt 0:00:11]} 14. cxd4 {[%emt 0:00:09]} Bb4+ {[%emt 0:00:01]} 15. Nc3 {[%emt 0:00:09]} Nge7 {[%emt 0:00:08]} 16. O-O {[%emt 0:00:57]} Bxc3 {[%emt 0:00:13]} 17. bxc3 f5 {[%emt 0:00:24]} 18. Bg5 {[%emt 0:00:08]} Rhg8 {[%emt 0:00:11]} 19. Bxe7 {[%emt 0:00:08]} Nxe7 {[%emt 0:00:02]} 20. Rfe1 {[%emt 0:00:49]} Rdf8 {[%emt 0:00:04]} 21. Qe2 {[%emt 0:00:19]} Ng6 {[%emt 0:00:08]} 22. Qe6 {[%emt 0:00:15]} f4 {[%emt 0:00:11]} 23. Qxd7+ {[%emt 0:02:39]} Kxd7 {[%emt 0:00:01]} 24. Nh1 {[%emt 0:01:23]} Nh4 {[%emt 0:00:03]} 25. g3 {[%emt 0:00:13]} Nf3+ {[%emt 0:00:02]} 26. Kf1 {[%emt 0:00:10]} Nxe1 {[%emt 0:00:03]} 27. Rxe1 {[%emt 0:00:02]} f3 {[%emt 0:00:05]} 28. Re3 {[%emt 0:00:10]} c6 {[%emt 0:00:11]} 29. h3 {[%emt 0:00:02]} h5 {[%emt 0:00:04]} 30. a4 {[%emt 0:00:05]} Rf5 {[%emt 0:00:06]} 31. Kg1 {[%emt 0:00:10]} Re8 {[%emt 0:00:14]} 32. Rxe8 {[%emt 0:00:09]} Kxe8 {[%emt 0:00:02]} 33. Kh2 {[%emt 0:00:01]} Rg5 {[%emt 0:00:10]} 34. a5 {[%emt 0:00:11]} b6 {[%emt 0:00:34]} 35. axb6 {[%emt 0:00:01]} axb6 {[%emt 0:00:01]} 36. Kg1 {[%emt 0:00:07]} c5 {[%emt 0:00:14]} 37. dxc5 {[%emt 0:00:02]} bxc5 {[%emt 0:00:02]} 38. Kf1 {[%emt 0:00:02]} Kd7 {[%emt 0:00:35]} 39. Ke1 {[%emt 0:00:03]} Kd6 {[%emt 0:00:03]} 40. Kd2 {[%emt 0:00:05]} d4 {[%emt 0:00:01]} 41. cxd4 {[%emt 0:00:02]} cxd4 {[%emt 0:00:01]} 42. Kd3 {[%emt 0:00:03]} Kd5 {[%emt 0:00:02]} 43. Kd2 {[%emt 0:00:11]} Kc4 {[%emt 0:00:04]} 44. Kc2 {[%emt 0:00:14]} d3+ {[%emt 0:00:09]} 45. Kd2 {[%emt 0:00:01]} Kd4 {[%emt 0:00:02]} 46. g4 {[%emt 0:00:09]} h4 {[%emt 0:00:03]} 47. Kd1 {[%emt 0:00:05]} Kc3 {[%emt 0:00:04]} 48. Kc1 {[%emt 0:00:05]} d2+ {[%emt 0:00:04]} 49. Kd1 {[%emt 0:00:02]} Re5 {[%emt 0:00:02]} 50. Ng3 {[%emt 0:00:03]} Re1# {[%emt 0:00:02]} 0-1

[Event "Memorial Ukrainian Chess Warriors 2024"]
[Site "Lviv"]
[Date "2024.03.15"]
[Round "8.23"]
[White "Kruk, Roman"]
[Black "Piddubna, Bozhena"]
[Result "0-1"]
[ECO "E59"]
[WhiteElo "1548"]
[BlackElo "2132"]
[Annotator "RC"]
[PlyCount "86"]
[EventDate "2024.03.06"]
[EventType "swiss"]
[EventCountry "UKR"]
[SourceTitle "playchess.com"]
[Source "ChessBase"]
[SourceQuality "1"]
[TimeControl "600+5"]

1. d4 {[%emt 0:00:01]} Nf6 {[%emt 0:00:01]} 2. c4 {[%emt 0:00:02]} e6 {[%emt 0:00:01]} 3. Nc3 {[%emt 0:00:02]} Bb4 {[%emt 0:00:02]} 4. e3 {[%emt 0:00:05]} O-O {[%emt 0:00:08]} 5. Bd3 {[%emt 0:00:18]} d5 {[%emt 0:00:07]} 6. Nf3 {[%emt 0:00:38]} c5 {[%emt 0:00:01]} 7. O-O {[%emt 0:00:24]} dxc4 {[%emt 0:00:08]} 8. Bxc4 {[%emt 0:00:02]} Nc6 {[%emt 0:00:01]} 9. a3 {[%emt 0:00:39]} Bxc3 {[%emt 0:00:17]} 10. bxc3 {[%emt 0:00:02]} Qc7 {[%emt 0:00:11]} 11. a4 {[%emt 0:01:03]} Rd8 {[%emt 0:01:09]} 12. Qe2 {[%emt 0:00:19]} Na5 {[%emt 0:01:44]} 13. Bd3 {[%emt 0:00:49]} Nb3 {[%emt 0:01:35]} 14. Rb1 {[%emt 0:00:18]} Nxc1 {[%emt 0:00:03]} 15. Rfxc1 {[%emt 0:00:02]} b6 {[%emt 0:00:03]} 16. e4 {[%emt 0:00:39]} Bb7 {[%emt 0:00:02]} 17. e5 {[%emt 0:01:22]} Bxf3 {[%emt 0:01:06]} 18. Qxf3 {[%emt 0:00:05]} Nd5 {[%emt 0:00:01]} 19. Be4 {[%emt 0:00:16]} Rac8 {[%emt 0:00:13]} 20. Qh5 {[%emt 0:00:41]} h6 {[%emt 0:02:42]} 21. Qd1 {[%emt 0:00:26]} cxd4 {[%emt 0:00:39]} 22. cxd4 {[%emt 0:00:02]} Nc3 {[%emt 0:00:38]} 23. Qd3 {[%emt 0:00:23]} Ne2+ {[%emt 0:00:17]} 24. Qxe2 {[%emt 0:00:07]} Qxc1+ {[%emt 0:00:02]} 25. Qf1 {[%emt 0:00:02]} Qxf1+ {[%emt 0:00:03]} 26. Rxf1 {[%emt 0:00:03]} Rxd4 {[%emt 0:00:02]} 27. f3 {[%emt 0:00:01]} Rxa4 {[%emt 0:00:19]} 28. Rd1 {[%emt 0:00:02]} Rac4 {[%emt 0:00:12]} 29. Rd7 {[%emt 0:00:02]} R4c7 {[%emt 0:00:01]} 30. Rd6 {[%emt 0:00:02]} Kf8 {[%emt 0:00:05]} 31. Kf2 {[%emt 0:00:01]} Ke7 {[%emt 0:00:02]} 32. Rd2 {[%emt 0:00:02]} b5 {[%emt 0:00:15]} 33. Rb2 {[%emt 0:00:01]} a6 {[%emt 0:00:01]} 34. Ra2 {[%emt 0:00:01]} Ra7 {[%emt 0:00:03]} 35. Ra5 {[%emt 0:00:02]} b4 {[%emt 0:00:06]} 36. Ke3 {[%emt 0:00:01]} b3 {[%emt 0:00:07]} 37. Ra3 {[%emt 0:00:02]} Rb8 {[%emt 0:00:05]} 38. Ra1 {[%emt 0:00:01]} a5 {[%emt 0:00:04]} 39. Rb1 {[%emt 0:00:02]} a4 {[%emt 0:00:02]} 40. Kd3 {[%emt 0:00:03]} a3 {[%emt 0:00:01]} 41. Kc3 {[%emt 0:00:01]} Rc7+ {[%emt 0:00:02]} 42. Kd4 {[%emt 0:00:02]} b2 {[%emt 0:00:11]} 43. f4 {[%emt 0:00:02]} a2 {[%emt 0:00:02]} 0-1

[Event "Memorial Ukrainian Chess Warriors 2024"]
[Site "Lviv"]
[Date "2024.03.15"]
[Round "8.25"]
[White "Domanskiy, Mykola"]
[Black "Popov, Sergey A."]
[Result "1-0"]
[ECO "B07"]
[WhiteElo "2046"]
[BlackElo "1923"]
[Annotator "RC"]
[PlyCount "65"]
[EventDate "2024.03.06"]
[EventType "swiss"]
[EventCountry "UKR"]
[SourceTitle "playchess.com"]
[Source "ChessBase"]
[SourceQuality "1"]
[TimeControl "600+5"]

1. e4 {[%emt 0:00:01]} d6 {[%emt 0:00:08]} 2. d4 {[%emt 0:00:11]} Nf6 {[%emt 0:00:03]} 3. Nc3 {[%emt 0:00:02]} c6 {[%emt 0:00:01]} 4. Be3 {[%emt 0:00:05]} Nbd7 {[%emt 0:00:14]} 5. f3 {[%emt 0:00:02]} e5 {[%emt 0:00:08]} 6. dxe5 {[%emt 0:00:33]} dxe5 {[%emt 0:00:04]} 7. Bc4 {[%emt 0:00:18]} Be7 {[%emt 0:00:11]} 8. a4 {[%emt 0:00:06]} a5 {[%emt 0:00:09]} 9. Nge2 {[%emt 0:00:02]} O-O {[%emt 0:00:03]} 10. O-O {[%emt 0:00:02]} Qc7 {[%emt 0:00:24]} 11. Qe1 {[%emt 0:00:04]} Nc5 {[%emt 0:00:45]} 12. Qf2 {[%emt 0:00:05]} b6 {[%emt 0:00:46]} 13. Rfd1 {[%emt 0:00:20]} Rb8 {[%emt 0:00:10]} 14. Kh1 {[%emt 0:00:15]} Be6 {[%emt 0:00:15]} 15. Bxe6 {[%emt 0:01:00]} Nxe6 {[%emt 0:00:02]} 16. Rd2 {[%emt 0:00:21]} Bc5 {[%emt 0:00:30]} 17. Rad1 {[%emt 0:00:12]} Rfd8 {[%emt 0:00:13]} 18. Bxc5 {[%emt 0:00:15]} Nxc5 {[%emt 0:00:04]} 19. Ng3 {[%emt 0:00:10]} g6 {[%emt 0:00:41]} 20. h3 {[%emt 0:00:20]} Ne6 {[%emt 0:00:40]} 21. Nge2 {[%emt 0:00:09]} Rxd2 {[%emt 0:00:11]} 22. Rxd2 {[%emt 0:00:04]} Rd8 {[%emt 0:00:04]} 23. Rxd8+ {[%emt 0:00:37]} Qxd8 {[%emt 0:00:02]} 24. f4 {[%emt 0:00:14]} exf4 {[%emt 0:01:39]} 25. Nxf4 {[%emt 0:00:01]} Nxf4 {[%emt 0:00:03]} 26. Qxf4 {[%emt 0:00:01]} Nh5 {[%emt 0:00:09]} 27. Qe3 {[%emt 0:00:03]} Qf6 {[%emt 0:01:37]} 28. Kg1 {[%emt 0:00:21]} c5 {[%emt 0:00:12]} 29. e5 {[%emt 0:00:15]} Qe6 {[%emt 0:00:50]} 30. Ne2 {[%emt 0:00:28]} Qc4 {[%emt 0:00:29]} 31. Nc3 {[%emt 0:01:16]} Ng7 32. Qd3 Qxd3 {[%emt 0:01:49]} 33. cxd3 {[%emt 0:00:07]} 1-0

[Event "Memorial Ukrainian Chess Warriors 2024"]
[Site "Lviv"]
[Date "2024.03.15"]
[Round "8.26"]
[White "Yushko, Olga"]
[Black "Hrabinska, Myroslava"]
[Result "0-1"]
[ECO "D35"]
[WhiteElo "1940"]
[BlackElo "2177"]
[Annotator "RC"]
[PlyCount "108"]
[EventDate "2024.03.06"]
[EventType "swiss"]
[EventCountry "UKR"]
[SourceTitle "playchess.com"]
[Source "ChessBase"]
[SourceQuality "1"]
[TimeControl "600+5"]

1. d4 {[%emt 0:00:05]} d5 {[%emt 0:00:03]} 2. c4 {[%emt 0:00:00]} e6 {[%emt 0:00:03]} 3. cxd5 {[%emt 0:00:00]} exd5 {[%emt 0:00:02]} 4. Nc3 {[%emt 0:00:02]} Nf6 {[%emt 0:00:23]} 5. Bg5 {[%emt 0:00:02]} c6 {[%emt 0:00:07]} 6. e3 {[%emt 0:00:02]} Be7 {[%emt 0:00:37]} 7. Bd3 {[%emt 0:00:03]} Nbd7 {[%emt 0:00:54]} 8. Nge2 {[%emt 0:00:07]} Nf8 {[%emt 0:00:19]} 9. Qc2 {[%emt 0:00:24]} Ne6 {[%emt 0:00:06]} 10. Bh4 {[%emt 0:00:50]} g6 {[%emt 0:00:09]} 11. Rb1 {[%emt 0:00:22]} c5 {[%emt 0:00:19]} 12. dxc5 {[%emt 0:00:25]} Nxc5 {[%emt 0:00:54]} 13. Bb5+ {[%emt 0:01:51]} Kf8 {[%emt 0:00:02]} 14. Bxf6 {[%emt 0:02:08]} Bxf6 {[%emt 0:00:04]} 15. Rd1 {[%emt 0:00:07]} Bf5 {[%emt 0:00:57]} 16. Qd2 {[%emt 0:00:37]} a6 {[%emt 0:00:40]} 17. Ba4 {[%emt 0:00:54]} Nxa4 {[%emt 0:02:09]} 18. Nxa4 {[%emt 0:00:02]} Kg7 {[%emt 0:00:02]} 19. O-O {[%emt 0:00:10]} Rc8 {[%emt 0:00:28]} 20. Rc1 {[%emt 0:00:22]} Qd6 {[%emt 0:01:03]} 21. Nd4 {[%emt 0:00:10]} Bd7 {[%emt 0:00:21]} 22. Nc3 {[%emt 0:00:06]} b5 {[%emt 0:00:06]} 23. a3 {[%emt 0:00:07]} Be6 {[%emt 0:00:05]} 24. Nce2 {[%emt 0:00:30]} h5 {[%emt 0:00:16]} 25. Rfd1 {[%emt 0:00:27]} h4 {[%emt 0:00:02]} 26. Nf4 {[%emt 0:00:23]} Be5 {[%emt 0:00:01]} 27. Nde2 {[%emt 0:00:57]} Rc4 {[%emt 0:00:20]} 28. Rxc4 {[%emt 0:00:08]} bxc4 {[%emt 0:00:01]} 29. h3 {[%emt 0:00:10]} Rd8 {[%emt 0:00:01]} 30. Nxe6+ {[%emt 0:00:16]} fxe6 {[%emt 0:00:01]} 31. Nd4 {[%emt 0:00:04]} Qb6 {[%emt 0:00:08]} 32. Nf3 {[%emt 0:00:16]} Qxb2 {[%emt 0:00:14]} 33. Qa5 {[%emt 0:00:20]} Bf6 {[%emt 0:00:01]} 34. Nd4 {[%emt 0:00:17]} Re8 {[%emt 0:00:15]} 35. Qa4 {[%emt 0:00:04]} Re7 {[%emt 0:00:04]} 36. Nc6 {[%emt 0:00:02]} Rc7 {[%emt 0:00:05]} 37. Qxa6 {[%emt 0:00:09]} c3 {[%emt 0:00:04]} 38. Nb4 {[%emt 0:00:04]} c2 {[%emt 0:00:04]} 39. Nxc2 {[%emt 0:00:01]} Qxc2 {[%emt 0:00:02]} 40. Rf1 {[%emt 0:00:01]} Qc6 {[%emt 0:00:02]} 41. Qd3 {[%emt 0:00:03]} Qc3 {[%emt 0:00:03]} 42. Qa6 {[%emt 0:00:01]} Rc6 {[%emt 0:00:03]} 43. Qa7+ {[%emt 0:00:02]} Kh6 {[%emt 0:00:02]} 44. Rb1 {[%emt 0:00:04]} Be5 {[%emt 0:00:04]} 45. f4 {[%emt 0:00:10]} Bd6 {[%emt 0:00:12]} 46. Rf1 {[%emt 0:00:02]} Bc5 {[%emt 0:00:02]} 47. Qf7 {[%emt 0:00:02]} Qxe3+ {[%emt 0:00:16]} 48. Kh1 {[%emt 0:00:01]} Rc8 {[%emt 0:00:09]} 49. f5 {[%emt 0:00:12]} exf5 {[%emt 0:00:06]} 50. Qxd5 {[%emt 0:00:13]} Be7 {[%emt 0:00:12]} 51. Qd1 {[%emt 0:00:12]} Bg5 {[%emt 0:00:04]} 52. Qd6 {[%emt 0:00:04]} Qe7 {[%emt 0:00:11]} 53. Qd4 {[%emt 0:00:07]} Qxa3 {[%emt 0:00:08]} 54. Qb6 {[%emt 0:00:06]} Rc1 {[%emt 0:00:06]} 0-1

[Event "Memorial Ukrainian Chess Warriors 2024"]
[Site "Lviv"]
[Date "2024.03.15"]
[Round "8.27"]
[White "Schults, Olev"]
[Black "Svitenko, Solomiia"]
[Result "1-0"]
[ECO "B42"]
[WhiteElo "2109"]
[BlackElo "1570"]
[Annotator "RC"]
[PlyCount "97"]
[EventDate "2024.03.06"]
[EventType "swiss"]
[EventCountry "UKR"]
[SourceTitle "playchess.com"]
[Source "ChessBase"]
[SourceQuality "1"]
[TimeControl "600+5"]

1. e4 {[%emt 0:00:04]} c5 {[%emt 0:00:03]} 2. Nf3 {[%emt 0:00:01]} e6 {[%emt 0:00:02]} 3. d4 {[%emt 0:00:03]} cxd4 {[%emt 0:00:04]} 4. Nxd4 {[%emt 0:00:02]} a6 {[%emt 0:00:01]} 5. Bd3 {[%emt 0:00:02]} Qc7 {[%emt 0:00:04]} 6. Nc3 {[%emt 0:00:15]} Nf6 {[%emt 0:00:10]} 7. a3 {[%emt 0:00:15]} Be7 {[%emt 0:00:27]} 8. O-O {[%emt 0:00:38]} O-O {[%emt 0:00:08]} 9. Kh1 {[%emt 0:00:04]} Rd8 {[%emt 0:00:35]} 10. Qe2 {[%emt 0:01:04]} d6 {[%emt 0:00:08]} 11. f4 {[%emt 0:00:09]} Nbd7 {[%emt 0:00:07]} 12. Bd2 {[%emt 0:01:41]} Nc5 {[%emt 0:00:46]} 13. Rae1 {[%emt 0:00:15]} b5 {[%emt 0:01:22]} 14. Qf3 {[%emt 0:00:03]} Bb7 {[%emt 0:00:21]} 15. Qh3 {[%emt 0:00:05]} Nxd3 {[%emt 0:00:30]} 16. cxd3 {[%emt 0:00:02]} Qc5 {[%emt 0:00:11]} 17. Be3 {[%emt 0:02:01]} Qh5 {[%emt 0:00:30]} 18. Qg3 {[%emt 0:00:07]} Qg6 {[%emt 0:01:43]} 19. Qf3 {[%emt 0:00:10]} Qh5 {[%emt 0:00:37]} 20. h3 {[%emt 0:01:20]} Qxf3 {[%emt 0:00:09]} 21. Nxf3 {[%emt 0:00:01]} Rac8 {[%emt 0:00:21]} 22. Kg1 {[%emt 0:00:03]} Nd7 {[%emt 0:00:16]} 23. Kf2 {[%emt 0:00:39]} Nc5 {[%emt 0:00:19]} 24. Ke2 {[%emt 0:00:03]} Bf6 {[%emt 0:00:17]} 25. Rc1 {[%emt 0:00:56]} Nb3 {[%emt 0:00:39]} 26. Rc2 {[%emt 0:00:01]} d5 {[%emt 0:00:07]} 27. e5 {[%emt 0:00:27]} Be7 {[%emt 0:00:09]} 28. Nd4 {[%emt 0:00:08]} Nxd4+ {[%emt 0:00:19]} 29. Bxd4 {[%emt 0:00:02]} Bc5 {[%emt 0:00:08]} 30. Ke3 {[%emt 0:00:55]} Bxd4+ {[%emt 0:00:28]} 31. Kxd4 {[%emt 0:00:01]} a5 {[%emt 0:00:31]} 32. Rfc1 {[%emt 0:00:07]} b4 {[%emt 0:00:10]} 33. Na4 {[%emt 0:00:17]} Rxc2 {[%emt 0:00:26]} 34. Rxc2 {[%emt 0:00:01]} Rc8 {[%emt 0:00:06]} 35. Rxc8+ {[%emt 0:00:04]} Bxc8 {[%emt 0:00:01]} 36. axb4 {[%emt 0:00:06]} axb4 37. b3 {[%emt 0:00:19]} Ba6 {[%emt 0:00:12]} 38. Nb2 Bb7 {[%emt 0:00:18]} 39. Kc5 {[%emt 0:00:04]} d4 {[%emt 0:00:03]} 40. g3 {[%emt 0:00:01]} Bd5 {[%emt 0:00:03]} 41. Kxb4 {[%emt 0:00:03]} Kf8 {[%emt 0:00:06]} 42. Nc4 {[%emt 0:00:01]} Bg2 {[%emt 0:00:08]} 43. h4 {[%emt 0:00:01]} Bf1 {[%emt 0:00:05]} 44. Kc5 {[%emt 0:00:01]} Bxd3 {[%emt 0:00:10]} 45. Kxd4 {[%emt 0:00:02]} Bc2 {[%emt 0:00:07]} 46. b4 {[%emt 0:00:04]} Ke7 {[%emt 0:00:06]} 47. Kc5 {[%emt 0:00:04]} Kd7 {[%emt 0:00:06]} 48. b5 {[%emt 0:00:08]} Be4 {[%emt 0:00:06]} 49. Nd6 1-0